lending/lending_fUSD_20250122
["ID","MTS","AMOUNT","RATE_DAILY","PERIOD"]
[349942301,1737527436833,-3304.32,0.0001999,2]
[349942302,1737527436843,-500.0,0.0001999,2]
[349942303,1737527436853,-500.0,0.0001999,2]
[349942304,1737527436864,-500.0,0.0001999,2]
[349942305,1737527436873,-6027.0,0.0001999,2]
[349942306,1737527436883,-9933.78,0.0001999,2]
[349942307,1737527436895,-802.66,0.0001999,2]
[349942308,1737527436906,-500.0,0.0001999,2]
[349942309,1737527436916,-1257.09,0.0001999,2]
[349942310,1737527436927,-500.0,0.0001999,2]
[349942311,1737527436938,-707.17,0.0001999,2]
[349942312,1737527436947,-814.25,0.0001999,2]
[349942313,1737527436957,-2860.36,0.0001999,2]
[349942314,1737527436967,-500.0,0.0001999,2]
[349942315,1737527436979,-500.0,0.0001999,2]
[349942316,1737527436988,-1228.41,0.0001999,2]
[349942317,1737527437000,-500.0,0.0001999,2]
[349942318,1737527437011,-500.0,0.0001999,2]
[349942319,1737527437021,-1711.05,0.0001999,2]
[349942320,1737527437031,-1860.17,0.0001999,2]
[349942321,1737527437042,-336.83105085,0.0001999,2]
[349942322,1737527437051,-500.0,0.0001999,2]
[349942323,1737527437060,-500.0,0.0001999,2]
[349942324,1737527437070,-500.0,0.0001999,2]
[349942325,1737527437079,-500.0,0.0001999,2]
[349942326,1737527437088,-644.89,0.0001999,2]
[349942327,1737527437097,-548.07330587,0.0001999,2]
[349942328,1737527437106,-1000.0,0.0001999,2]
[349942329,1737527437116,-500.0,0.0001999,2]
[349942330,1737527437125,-635.06,0.0001999,2]
[349942331,1737527437134,-500.0,0.0001999,2]
[349942332,1737527437143,-500.0,0.0001999,2]
[349942333,1737527437154,-500.0,0.0001999,2]
[349942334,1737527437163,-2642.82,0.0001999,2]
[349942335,1737527437172,-2316.92,0.0001999,2]
[349942336,1737527437182,-193.931485,0.00019991,2]
[349942337,1737527437191,-399.82366289,0.00019991,2]
[349942338,1737527437202,-641.09419567,0.00019991,2]
[349942339,1737527437211,-500.0,0.00019991,2]
[349942340,1737527437221,-507.71379526,0.00019991,2]
[349942341,1737527437234,-242.87146637,0.00019991,2]
[349942342,1737527437244,-218.23499256,0.00019991,2]
[349942343,1737527437253,-500.0,0.00019991,2]
[349942344,1737527437264,-500.0,0.00019991,2]
[349942345,1737527437273,-500.0,0.00019991,2]
[349942346,1737527437283,-500.0,0.00019991,2]
[349942347,1737527437292,-500.0,0.00019991,2]
[349942348,1737527437303,-500.0,0.00019991,2]
[349942349,1737527437312,-500.0,0.00019991,2]
[349942350,1737527437322,-500.0,0.00019991,2]
[349942351,1737527437333,-500.0,0.00019991,2]
[349942352,1737527437343,-500.0,0.00019991,2]
[349942353,1737527437354,-500.0,0.00019991,2]
[349942354,1737527437364,-500.0,0.00019991,2]
[349942355,1737527437373,-500.0,0.00019991,2]
[349942356,1737527437382,-500.0,0.00019991,2]
[349942357,1737527437392,-153.086133,0.00019991,2]
[349942358,1737527437401,-500.0,0.00019991,2]
[349942359,1737527437410,-501.63071581,0.00019991,2]
[349942360,1737527437419,-500.0,0.00019991,2]
[349942361,1737527437428,-500.0,0.00019991,2]
[349942362,1737527437437,-500.0,0.00019991,2]
[349942363,1737527437446,-725.94,0.00019991,2]
[349942364,1737527437455,-151.0,0.00019991,2]
[349942365,1737527437465,-500.0,0.00019991,2]
[349942366,1737527437474,-202.887859,0.00019991,2]
[349942367,1737527437483,-500.0,0.00019991,2]
[349942368,1737527437492,-899.71,0.00019991,2]
[349942369,1737527437502,-624.86,0.00019991,2]
[349942370,1737527437511,-1075.31,0.00019991,2]
[349942371,1737527437522,-500.0,0.00019991,2]
[349942372,1737527437531,-500.0,0.00019991,2]
[349942373,1737527437540,-1413.28,0.00019991,2]
[349942374,1737527437549,-535.11,0.00019991,2]
[349942375,1737527437559,-775.14,0.00019991,2]
[349942376,1737527437570,-746.83,0.00019991,2]
[349942377,1737527437579,-500.0,0.00019991,2]
[349942378,1737527437589,-500.0,0.00019991,2]
[349942379,1737527437598,-500.0,0.00019991,2]
[349942380,1737527437607,-151.0,0.00019991,2]
[349942381,1737527437617,-1595.98,0.00019991,2]
[349942382,1737527437626,-923.89,0.00019991,2]
[349942383,1737527437636,-1229.35,0.00019991,2]
[349942384,1737527437645,-937.36,0.00019991,2]
[349942385,1737527437655,-500.0,0.00019991,2]
[349942386,1737527437664,-500.0,0.00019991,2]
[349942387,1737527437674,-151.0,0.00019991,2]
[349942388,1737527437683,-500.0,0.00019991,2]
[349942389,1737527437693,-925.86,0.00019991,2]
[349942390,1737527437702,-500.0,0.00019991,2]
[349942391,1737527437711,-500.0,0.00019991,2]
[349942392,1737527437721,-500.0,0.00019991,2]
[349942393,1737527437731,-500.0,0.00019991,2]
[349942394,1737527437740,-500.0,0.00019991,2]
[349942395,1737527437750,-151.0,0.00019991,2]
[349942396,1737527437759,-151.0,0.00019991,2]
[349942397,1737527437770,-371.497185,0.00019991,2]
[349942398,1737527437780,-150.0,0.00019991,2]
[349942399,1737527437789,-500.0,0.00019993,2]
[349942400,1737527437799,-510.23,0.00019993,2]
[349942401,1737527437809,-500.0,0.00019993,2]
[349942402,1737527437819,-500.0,0.00019993,2]
[349942403,1737527437828,-500.0,0.00019993,2]
[349942404,1737527437838,-500.0,0.00019993,2]
[349942405,1737527437847,-505.61025313,0.00019993,2]
[349942406,1737527437857,-607.0,0.00019993,2]
[349942407,1737527437866,-220142.77990379,0.00019994,2]
[349942494,1737527439204,-254.94841088,0.00019989,2]
[349942496,1737527439216,-245.05158912,0.00019989,2]
[349942498,1737527439226,-59.29052619,0.00019989,2]
[349942502,1737527439251,-1001.78913903,0.00019989,2]
[349942888,1737527443304,-501.417,0.00019989,2]
[349942890,1737527443318,-533.29274991,0.00019989,2]
[349943170,1737527446049,-57.81058487,0.00019989,2]
[349943172,1737527446058,-500.0,0.00019989,2]
[349943174,1737527446068,-500.0,0.00019989,2]
[349943176,1737527446077,-500.0,0.00019989,2]
[349943178,1737527446085,-475.30763713,0.00019989,2]
[349943181,1737527446100,-996.47236287,0.00019989,2]
[349943183,1737527446109,-695.93,0.00019989,2]
[349943185,1737527446119,-731.2717685,0.00019989,2]
[349943189,1737527446144,-267.7482315,0.00019989,2]
[349943191,1737527446153,-875.23,0.00019989,2]
[349943192,1737527446163,-616.11,0.00019989,2]
[349943194,1737527446172,-386.7317445,0.0001999,2]
[349943207,1737527446293,-158.43813833,0.0001999,2]
[349943209,1737527446302,-352.922326,0.0001999,2]
[349943211,1737527446314,-546.0,0.00019993,2]
[349943213,1737527446323,-1245.67135618,0.00019994,2]
[349943585,1737527497038,500.0,0.00018164,2]
[349943586,1737527503904,1000.0,0.00019026,2]
[349943587,1737527609804,171.52,0.00019176,30]
[349943589,1737527799162,250.0,0.00018906,2]
[349943591,1737527862580,214.18,0.00018928,2]
[349943592,1737527892572,152.39,0.00018906,2]
[349943593,1737528004789,155.34,0.00010137,2]
[349943595,1737528067428,365.07,0.0001889,2]
[349943597,1737528273354,250.0,0.00018904,2]
[349943598,1737528345818,1000.0,0.00024,120]
[349943599,1737528427187,1000.0,0.000189,2]
[349943601,1737528454855,5044.0,0.000189,2]
[349943602,1737528553379,362.72,0.00016984,2]
[349943603,1737528553726,362.72,0.00019248,2]
[349943611,1737528632459,-162.4279466,0.00019594,2]
[349943612,1737528632468,-299.96600585,0.0001969,2]
[349943613,1737528632478,-299.96600583,0.0001971,2]
[349943614,1737528632487,-150.0,0.00019717,2]
[349943615,1737528632496,-150.0,0.00019719,2]
[349943616,1737528632506,-150.0,0.00019721,2]
[349943617,1737528632515,-150.0,0.00019722,2]
[349943618,1737528632524,-150.0,0.00019725,2]
[349943619,1737528632534,-150.0,0.00019732,2]
[349943620,1737528632543,-150.0,0.0001975,2]
[349943621,1737528632553,-150.0,0.00019766,2]
[349943622,1737528632562,-150.0,0.00019771,2]
[349943623,1737528632571,-1380.50318,0.0001979,2]
[349943624,1737528632582,-150.0,0.0001981,2]
[349943625,1737528632591,-150.0,0.0001981,2]
[349943626,1737528632603,-150.0,0.00019825,2]
[349943627,1737528632614,-150.0,0.00019827,2]
[349943628,1737528632623,-280.6315353,0.0001983,2]
[349943629,1737528632633,-150.0,0.00019857,2]
[349943630,1737528632642,-1000.0,0.00019859,2]
[349943631,1737528632651,-150.0,0.00019864,2]
[349943632,1737528632662,-150.0,0.00019865,2]
[349943633,1737528632672,-150.0,0.00019877,2]
[349943634,1737528632681,-150.0,0.00019886,2]
[349943636,1737528632692,-2039.68597915,0.00019888,2]
[349943638,1737528632703,-859.4443189,0.00019888,2]
[349943640,1737528632714,-730.42288892,0.00019888,2]
[349943642,1737528632723,-234.37709108,0.00019889,2]
[349943812,1737528638450,-4630.32660892,0.00019889,2]
[349943813,1737528638460,-5000.0,0.00019889,2]
[349943814,1737528638471,-150.0,0.00019893,2]
[349943815,1737528638480,-150.0,0.00019896,2]
[349943816,1737528638490,-207.54984584,0.000199,2]
[349943817,1737528638500,-150.0,0.00019923,2]
[349943818,1737528638509,-150.0,0.00019926,2]
[349943819,1737528638519,-157.82509568,0.00019927,2]
[349943820,1737528638528,-1166.876,0.00019927,2]
[349943821,1737528638538,-150.0,0.00019928,2]
[349943822,1737528638547,-150.0,0.00019959,2]
[349943823,1737528638556,-150.0,0.00019962,2]
[349943824,1737528638566,-15828.43742955,0.00019965,2]
[349943826,1737528638578,-907.68078654,0.00019965,2]
[349943830,1737528638619,-10210.779921,0.00019965,2]
[349943834,1737528638642,-257.7867933,0.00019965,2]
[349943842,1737528640287,-508.64671089,0.00019872,2]
[349943843,1737528640298,-2795.31506961,0.00019965,2]
[349943844,1737528640308,-12.45655817,0.00019965,2]
[349943845,1737528640327,-3689.8370054,0.00019965,2]
[349943846,1737528640533,-3343.64240173,0.00019965,2]
[349943862,1737528643440,-389.999951,0.00019965,2]
[349943887,1737528646252,-2370.0,0.00019965,2]
[349943888,1737528646446,-1902.46324773,0.00019965,2]
[349943889,1737528646456,-1057.93915813,0.00019972,2]
[349943890,1737528646466,-150.0,0.00019972,2]
[349943891,1737528646475,-500.0,0.00019973,2]
[349943892,1737528646485,-152.04563662,0.00019973,2]
[349943893,1737528646495,-150.0,0.00019973,2]
[349943894,1737528646506,-150.0,0.00019973,2]
[349943895,1737528646515,-165.86636039,0.00019973,2]
[349943896,1737528646524,-1000.0,0.00019976,2]
[349943897,1737528646534,-150.0,0.00019979,2]
[349943898,1737528646543,-796.25184696,0.0001998,2]
[349943899,1737528646552,-870.1,0.00019987,2]
[349943900,1737528646562,-545.6,0.00019987,2]
[349943902,1737528646571,-500.0,0.00019987,2]
[349943903,1737528646580,-3179.92,0.00019987,2]
[349943904,1737528646590,-513.56,0.00019987,2]
[349943905,1737528646599,-1179.65,0.00019987,2]
[349943906,1737528646614,-1092.24,0.00019987,2]
[349943907,1737528646623,-1222.73,0.00019987,2]
[349943908,1737528646632,-1276.07,0.00019987,2]
[349943909,1737528646641,-809.64,0.00019987,2]
[349943910,1737528646651,-536.17,0.00019987,2]
[349943911,1737528646660,-848.34,0.00019987,2]
[349943912,1737528646669,-1437.51,0.00019987,2]
[349943913,1737528646679,-2193.18,0.00019987,2]
[349943914,1737528646689,-2174.8,0.00019987,2]
[349943915,1737528646699,-1848.89,0.00019987,2]
[349943916,1737528646707,-962.44,0.00019987,2]
[349943917,1737528646716,-500.0,0.00019987,2]
[349943918,1737528646726,-500.0,0.00019987,2]
[349943919,1737528646735,-500.0,0.00019987,2]
[349943920,1737528646745,-3012.1,0.00019987,2]
[349943921,1737528646754,-851.1,0.00019987,2]
[349943922,1737528646763,-500.0,0.00019987,2]
[349943923,1737528646772,-675.55,0.00019987,2]
[349943924,1737528646783,-500.0,0.00019987,2]
[349943925,1737528646793,-985.13,0.00019987,2]
[349943926,1737528646802,-500.0,0.00019987,2]
[349943927,1737528646812,-500.0,0.00019987,2]
[349943928,1737528646821,-566.76,0.00019987,2]
[349943929,1737528646830,-1335.67,0.00019987,2]
[349943930,1737528646840,-659.4,0.00019987,2]
[349943931,1737528646849,-997.8882,0.00019988,2]
[349943932,1737528646860,-999.666858,0.00019988,2]
[349943933,1737528646869,-1539.176488,0.00019988,2]
[349943934,1737528646879,-156.159057,0.00019988,2]
[349943935,1737528646888,-500.0,0.00019988,2]
[349943936,1737528646897,-500.0,0.00019988,2]
[349943937,1737528646907,-500.0,0.00019988,2]
[349943938,1737528646916,-968.56,0.00019988,2]
[349943939,1737528646925,-1154.61,0.00019988,2]
[349943940,1737528646935,-500.0,0.00019988,2]
[349943941,1737528646944,-784.52,0.00019988,2]
[349943942,1737528646953,-500.0,0.00019988,2]
[349943943,1737528646962,-500.0,0.00019988,2]
[349943944,1737528646971,-502.84829027,0.00019988,2]
[349943945,1737528646980,-589.6,0.00019988,2]
[349943946,1737528646991,-500.0,0.00019988,2]
[349943947,1737528647000,-500.0,0.00019988,2]
[349943948,1737528647010,-531.01,0.00019988,2]
[349943949,1737528647019,-500.0,0.00019988,2]
[349943950,1737528647028,-500.0,0.00019988,2]
[349943951,1737528647038,-500.0,0.00019988,2]
[349943952,1737528647047,-1139.07,0.00019988,2]
[349943953,1737528647056,-350.67061219,0.00019988,2]
[349943954,1737528647068,-452.92938781,0.00019988,2]
[349943955,1737528647077,-500.0,0.00019988,2]
[349943956,1737528647087,-500.0,0.00019988,2]
[349943957,1737528647096,-1008.04,0.00019988,2]
[349943958,1737528647106,-1226.85,0.00019988,2]
[349943959,1737528647115,-500.0,0.00019988,2]
[349943960,1737528647125,-500.0,0.00019988,2]
[349943961,1737528647134,-245.14186609,0.00019988,2]
[349943962,1737528664889,250.0,0.00019215,2]
[349943964,1737528763225,10000.0,0.00024,120]
[349943967,1737528849566,176.87,0.00019143,2]
[349943968,1737528853336,171.52,0.00019362,30]
[349943969,1737528865651,163.97,0.00010137,2]
[349943971,1737528923739,494.78,0.00019307,2]
[349943972,1737528935807,152.39,0.00019153,2]
[349943974,1737529128665,162.92,0.00019105,2]
[349943975,1737529243697,11000.46947979,0.00019,2]
[349943976,1737529804797,155.5,0.00010137,2]
[349943980,1737529832395,-250.0,0.00016275,2]
[349943981,1737529832405,-371.64,0.00016832,2]
[349943982,1737529832415,-355.0,0.00018251,2]
[349943983,1737529832424,-98.99162863,0.0001844,2]
[349943984,1737529832776,-151.00837137,0.0001844,2]
[349943985,1737529832785,-500.0,0.000189,2]
[349943986,1737529832795,-376.43470908,0.000189,2]
[349943987,1737529832804,-1000.0,0.00018979,2]
[349943988,1737529832813,-482.95691955,0.00019,2]
[349943989,1737529832825,-1748.48308045,0.00019,2]
[349943990,1737529832836,-371.64,0.00019096,2]
[349943991,1737529832847,-300.0,0.00019177,2]
[349943992,1737529832858,-500.0,0.00019178,2]
[349943993,1737529832868,-500.0,0.00019178,2]
[349943994,1737529832877,-1849.23,0.00019178,2]
[349943995,1737529832887,-958.45,0.00019178,2]
[349943996,1737529832896,-78.95057828,0.00019178,2]
[349943997,1737529832911,-1920.9866496,0.00019178,2]
[349943998,1737529832923,-595.28277212,0.00019178,2]
[349943999,1737529832933,-1098.01722785,0.00019178,2]
[349944000,1737529832947,-390.25277215,0.00019178,2]
[349944001,1737529832957,-1060.99,0.00019178,2]
[349944002,1737529832967,-1733.274758,0.00019178,2]
[349944004,1737529832976,-3225.59,0.00019178,2]
[349944006,1737529832986,-3038.49938,0.00019178,2]
[349944048,1737529838433,-2263.48062,0.00019178,2]
[349944049,1737529838443,-2429.15,0.00019178,2]
[349944050,1737529838452,-162.502707,0.00019178,2]
[349944051,1737529838462,-161.365612,0.00019178,2]
[349944052,1737529838472,-500.0,0.00019178,2]
[349944053,1737529838482,-1239.25,0.00019178,2]
[349944054,1737529838491,-1238.73,0.00019178,2]
[349944055,1737529838501,-500.0,0.00019178,2]
[349944056,1737529838511,-1170.583413,0.00019178,2]
[349944057,1737529838521,-500.0,0.00019178,2]
[349944058,1737529838530,-1699.68,0.00019178,2]
[349944059,1737529838541,-2493.36,0.00019178,2]
[349944060,1737529838550,-2152.93,0.00019178,2]
[349944061,1737529838561,-500.0,0.00019178,2]
[349944062,1737529838571,-2836.367648,0.00019178,2]
[349944063,1737529838582,-440.232352,0.00019178,2]
[349944064,1737529838592,-500.0,0.00019178,2]
[349944065,1737529838602,-1165.12,0.00019178,2]
[349944066,1737529838611,-1394.36,0.00019178,2]
[349944067,1737529838621,-809.38,0.00019178,2]
[349944068,1737529838631,-500.0,0.00019178,2]
[349944069,1737529838640,-500.0,0.00019178,2]
[349944070,1737529838651,-500.0,0.00019178,2]
[349944071,1737529838661,-500.0,0.00019178,2]
[349944072,1737529838670,-1475.31,0.00019178,2]
[349944073,1737529838680,-500.0,0.00019178,2]
[349944074,1737529838690,-500.0,0.00019178,2]
[349944075,1737529838700,-500.0,0.00019178,2]
[349944076,1737529838709,-500.0,0.00019178,2]
[349944077,1737529838719,-500.0,0.00019178,2]
[349944078,1737529838728,-500.0,0.00019178,2]
[349944079,1737529838738,-500.0,0.00019178,2]
[349944080,1737529838748,-500.0,0.00019178,2]
[349944081,1737529838757,-500.0,0.00019178,2]
[349944082,1737529838767,-388.725689,0.00019178,2]
[349944083,1737529838776,-688.14,0.00019178,2]
[349944084,1737529838786,-500.0,0.00019178,2]
[349944085,1737529838795,-4786.95,0.00019178,2]
[349944086,1737529838805,-1695.25,0.00019178,2]
[349944087,1737529838814,-1472.15,0.00019178,2]
[349944088,1737529838824,-3787.07,0.00019178,2]
[349944089,1737529838833,-500.0,0.00019178,2]
[349944090,1737529838843,-1234.08,0.00019178,2]
[349944091,1737529838852,-1624.99,0.00019178,2]
[349944093,1737529838861,-1499.85,0.00019178,2]
[349944095,1737529838871,-1816.57,0.00019178,2]
[349944097,1737529838880,-906.98,0.00019178,2]
[349944099,1737529838890,-2331.61,0.00019178,2]
[349944101,1737529838899,-1917.72,0.00019178,2]
[349944103,1737529838909,-1866.02,0.00019178,2]
[349944105,1737529838918,-691.42,0.00019178,2]
[349944107,1737529838928,-1206.34,0.00019178,2]
[349944109,1737529838937,-500.0,0.00019178,2]
[349944111,1737529838946,-2875.88,0.00019178,2]
[349944113,1737529838957,-1289.63,0.00019178,2]
[349944115,1737529838966,-3720.26,0.00019178,2]
[349944117,1737529838976,-2211.76,0.00019178,2]
[349944119,1737529838985,-1958.37,0.00019178,2]
[349944120,1737529838994,-174.662595,0.00019178,2]
[349944122,1737529839004,-3222.96,0.00019178,2]
[349944124,1737529839018,-4970.02,0.00019178,2]
[349944126,1737529839028,-1265.23,0.00019178,2]
[349944128,1737529839037,-500.0,0.00019178,2]
[349944130,1737529839048,-1678.79,0.00019178,2]
[349944132,1737529839058,-3887.04,0.00019178,2]
[349944134,1737529839067,-1716.78,0.00019178,2]
[349944136,1737529839077,-500.0,0.00019178,2]
[349944137,1737529839087,-500.0,0.00019178,2]
[349944138,1737529839096,-780.76,0.00019178,2]
[349944139,1737529839106,-6061.4,0.00019178,2]
[349944140,1737529839116,-500.0,0.00019178,2]
[349944141,1737529839126,-500.0,0.00019178,2]
[349944142,1737529839136,-500.0,0.00019178,2]
[349944143,1737529839146,-864.5,0.00019178,2]
[349944144,1737529839156,-1204.94,0.00019178,2]
[349944145,1737529839166,-500.0,0.00019178,2]
[349944146,1737529839176,-795.94,0.00019178,2]
[349944147,1737529839187,-1016.78,0.00019178,2]
[349944148,1737529839197,-150.0,0.000192,2]
[349944149,1737529839206,-150.29,0.000192,2]
[349944150,1737529839216,-437.71,0.000192,2]
[349944151,1737529839226,-773.25,0.00019241,2]
[349944152,1737529839235,-773.25,0.00019241,2]
[349944153,1737529839245,-771.18,0.00019241,2]
[349944154,1737529839255,-932.18,0.000193,2]
[349944155,1737529839264,-773.11,0.000193,2]
[349944156,1737529839274,-150.0,0.000193,2]
[349944157,1737529839283,-300.0,0.000193,2]
[349944158,1737529839293,-150.0,0.000193,2]
[349944159,1737529839303,-438.48,0.000193,2]
[349944160,1737529839312,-1333.84809426,0.00019352,2]
[349944161,1737529839322,-525.52,0.00019378,2]
[349944162,1737529839331,-181.63,0.00019378,2]
[349944163,1737529839341,-982.04,0.00019378,2]
[349944164,1737529839351,-150.0,0.00019378,2]
[349944165,1737529839360,-376.43470905,0.000194,2]
[349944166,1737529839370,-455.85596205,0.000194,2]
[349944167,1737529839379,-172.17,0.00019442,2]
[349944168,1737529839389,-172.17,0.00019442,2]
[349944169,1737529839398,-172.17,0.00019442,2]
[349944170,1737529839409,-172.17,0.00019442,2]
[349944171,1737529839419,-172.17,0.00019442,2]
[349944172,1737529839428,-172.17,0.00019442,2]
[349944173,1737529839437,-86463.68316987,0.00019452,2]
[349944174,1737529839477,-968247.21599614,0.00019452,2]
[349944175,1737529839487,-500.0,0.00019452,2]
[349944176,1737529839496,-500.0,0.00019452,2]
[349944177,1737529839505,-1849.23,0.00019452,2]
[349944178,1737529839516,-958.45,0.00019452,2]
[349944179,1737529839525,-2595.22,0.00019452,2]
[349944180,1737529839535,-1488.27,0.00019452,2]
[349944181,1737529839544,-1733.274758,0.00019452,2]
[349944182,1737529839554,-3225.59,0.00019452,2]
[349944183,1737529839563,-5301.98,0.00019452,2]
[349944184,1737529839572,-2429.15,0.00019452,2]
[349944185,1737529839581,-500.0,0.00019452,2]
[349944186,1737529839591,-1239.25,0.00019452,2]
[349944187,1737529839601,-1238.73,0.00019452,2]
[349944188,1737529839610,-500.0,0.00019452,2]
[349944189,1737529839619,-1170.583413,0.00019452,2]
[349944190,1737529839628,-500.0,0.00019452,2]
[349944191,1737529839637,-1699.68,0.00019452,2]
[349944192,1737529839646,-2493.36,0.00019452,2]
[349944193,1737529839656,-2152.93,0.00019452,2]
[349944194,1737529839665,-500.0,0.00019452,2]
[349944195,1737529839675,-3276.6,0.00019452,2]
[349944196,1737529839684,-500.0,0.00019452,2]
[349944197,1737529839692,-1165.12,0.00019452,2]
[349944198,1737529839702,-1394.36,0.00019452,2]
[349944199,1737529839712,-809.38,0.00019452,2]
[349944200,1737529839722,-1475.31,0.00019452,2]
[349944201,1737529839732,-688.14,0.00019452,2]
[349944202,1737529839741,-500.0,0.00019452,2]
[349944203,1737529839751,-1695.25,0.00019452,2]
[349944204,1737529839760,-4786.95,0.00019452,2]
[349944205,1737529839770,-1472.15,0.00019452,2]
[349944206,1737529839779,-3787.07,0.00019452,2]
[349944207,1737529839788,-500.0,0.00019452,2]
[349944208,1737529839797,-1234.08,0.00019452,2]
[349944209,1737529839806,-1624.99,0.00019452,2]
[349944210,1737529839815,-1499.85,0.00019452,2]
[349944211,1737529839825,-1816.57,0.00019452,2]
[349944212,1737529839834,-906.98,0.00019452,2]
[349944213,1737529839843,-2331.61,0.00019452,2]
[349944214,1737529839852,-1917.72,0.00019452,2]
[349944215,1737529839861,-1866.02,0.00019452,2]
[349944216,1737529839871,-691.42,0.00019452,2]
[349944217,1737529839880,-1206.34,0.00019452,2]
[349944218,1737529839890,-500.0,0.00019452,2]
[349944219,1737529839899,-2875.88,0.00019452,2]
[349944220,1737529839909,-1289.63,0.00019452,2]
[349944221,1737529839919,-3720.26,0.00019452,2]
[349944222,1737529839928,-2211.76,0.00019452,2]
[349944223,1737529839937,-1958.37,0.00019452,2]
[349944224,1737529839947,-336.148724,0.00019452,2]
[349944225,1737529839956,-3222.96,0.00019452,2]
[349944226,1737529839966,-4970.02,0.00019452,2]
[349944227,1737529839975,-336.148724,0.00019452,2]
[349944228,1737529839985,-1265.23,0.00019452,2]
[349944229,1737529839994,-500.0,0.00019452,2]
[349944230,1737529840007,-1678.79,0.00019452,2]
[349944231,1737529840017,-3887.04,0.00019452,2]
[349944232,1737529840027,-1716.78,0.00019452,2]
[349944233,1737529840036,-500.0,0.00019452,2]
[349944234,1737529840046,-500.0,0.00019452,2]
[349944235,1737529840057,-780.76,0.00019452,2]
[349944236,1737529840066,-6061.4,0.00019452,2]
[349944237,1737529840076,-500.0,0.00019452,2]
[349944238,1737529840086,-500.0,0.00019452,2]
[349944239,1737529840098,-500.0,0.00019452,2]
[349944240,1737529840108,-864.5,0.00019452,2]
[349944241,1737529840117,-1204.94,0.00019452,2]
[349944242,1737529840127,-500.0,0.00019452,2]
[349944243,1737529840136,-795.94,0.00019452,2]
[349944244,1737529840145,-1016.78,0.00019452,2]
[349944245,1737529840155,-500.0,0.00019473,2]
[349944246,1737529840165,-421.76103696,0.00019487,2]
[349944247,1737529840175,-150.0,0.000195,2]
[349944248,1737529840184,-910.44,0.000195,2]
[349944249,1737529840193,-589.0,0.00019561,2]
[349944250,1737529840203,-162.4279467,0.00019594,2]
[349944251,1737529840212,-172.17,0.00019716,2]
[349944252,1737529840221,-172.17,0.00019716,2]
[349944253,1737529840231,-500.0,0.00019726,2]
[349944254,1737529840240,-1849.23,0.00019726,2]
[349944255,1737529840251,-958.45,0.00019726,2]
[349944256,1737529840260,-2595.22,0.00019726,2]
[349944257,1737529840269,-1488.27,0.00019726,2]
[349944258,1737529840278,-1733.274758,0.00019726,2]
[349944259,1737529840288,-3225.59,0.00019726,2]
[349944261,1737529840297,-5301.98,0.00019726,2]
[349944263,1737529840307,-2429.15,0.00019726,2]
[349944265,1737529840317,-500.0,0.00019726,2]
[349944266,1737529840326,-1239.25,0.00019726,2]
[349944267,1737529840336,-1238.73,0.00019726,2]
[349944268,1737529840346,-500.0,0.00019726,2]
[349944270,1737529840355,-1170.583413,0.00019726,2]
[349944272,1737529840365,-500.0,0.00019726,2]